Workbook

Sheet Volumes
A1: Sample bottle | G1: TItrant bottle
A2: ml | B2: temp (deg C) | C2: mass | D2: volume | E2: volume at 20 deg | G2: ml | H2: temp (deg C) | I2: mass | J2: volume | K2: volume at 20 deg
A3: 29.9154 | B3: 17.822 | C3: =A3*(1-((3.4848*(101.325-(0.003796*30*EXP(-5315.56/(B3+273.15))*(1.7526*10^8)))/(273.15+B3))*10^-3)/8)/(1-((3.4848*(101.325-(0.003796*30*EXP(-5315.56/(B3+273.15))*(1.7526*10^8)))/(273.15+B3))*10^-3)/((999.84847+B3*6.337563*10^-2-B3^2*8.523829*10^-3+B3^3*6.943248*10^-5-3.821216*10^-7*B3^4)/1000)) -> 29.94718033 | D3: =C3/((999.84847+B3*6.337563*10^-2-B3^2*8.523829*10^-3+B3^3*6.943248*10^-5-3.821216*10^-7*B3^4)/1000) -> 29.98841242 | E3: =D3*(1+((1+32.5*10^-7)^3-1)*(20-B3)) -> 29.98904924 | G3: 0.9989 | H3: 18.418 | I3: =G3*(1-((3.4848*(101.325-(0.003796*30*EXP(-5315.56/(H3+273.15))*(1.7526*10^8)))/(273.15+H3))*10^-3)/8)/(1-((3.4848*(101.325-(0.003796*30*EXP(-5315.56/(H3+273.15))*(1.7526*10^8)))/(273.15+H3))*10^-3)/((999.84847+H3*6.337563*10^-2-H3^2*8.523829*10^-3+H3^3*6.943248*10^-5-3.821216*10^-7*H3^4)/1000)) -> 0.9999590416 | J3: =I3/((999.84847+H3*6.337563*10^-2-H3^2*8.523829*10^-3+H3^3*6.943248*10^-5-3.821216*10^-7*H3^4)/1000) -> 1.001447117 | K3: =J3*(1+((1+32.5*10^-7)^3-1)*(20-H3)) -> 1.001462564 | L3: 2017-11-13
A4: 29.9548 | B4: 17.866 | C4: =A4*(1-((3.4848*(101.325-(0.003796*30*EXP(-5315.56/(B4+273.15))*(1.7526*10^8)))/(273.15+B4))*10^-3)/8)/(1-((3.4848*(101.325-(0.003796*30*EXP(-5315.56/(B4+273.15))*(1.7526*10^8)))/(273.15+B4))*10^-3)/((999.84847+B4*6.337563*10^-2-B4^2*8.523829*10^-3+B4^3*6.943248*10^-5-3.821216*10^-7*B4^4)/1000)) -> 29.98661746 | D4: =C4/((999.84847+B4*6.337563*10^-2-B4^2*8.523829*10^-3+B4^3*6.943248*10^-5-3.821216*10^-7*B4^4)/1000) -> 30.02814621 | E4: =D4*(1+((1+32.5*10^-7)^3-1)*(20-B4)) -> 30.02877099 | G4: 0.996 | H4: 18.374 | I4: =G4*(1-((3.4848*(101.325-(0.003796*30*EXP(-5315.56/(H4+273.15))*(1.7526*10^8)))/(273.15+H4))*10^-3)/8)/(1-((3.4848*(101.325-(0.003796*30*EXP(-5315.56/(H4+273.15))*(1.7526*10^8)))/(273.15+H4))*10^-3)/((999.84847+H4*6.337563*10^-2-H4^2*8.523829*10^-3+H4^3*6.943248*10^-5-3.821216*10^-7*H4^4)/1000)) -> 0.9970561235 | J4: =I4/((999.84847+H4*6.337563*10^-2-H4^2*8.523829*10^-3+H4^3*6.943248*10^-5-3.821216*10^-7*H4^4)/1000) -> 0.9985315515 | K4: =J4*(1+((1+32.5*10^-7)^3-1)*(20-H4)) -> 0.9985473817
A5: 29.9039 | B5: 17.922 | C5: =A5*(1-((3.4848*(101.325-(0.003796*30*EXP(-5315.56/(B5+273.15))*(1.7526*10^8)))/(273.15+B5))*10^-3)/8)/(1-((3.4848*(101.325-(0.003796*30*EXP(-5315.56/(B5+273.15))*(1.7526*10^8)))/(273.15+B5))*10^-3)/((999.84847+B5*6.337563*10^-2-B5^2*8.523829*10^-3+B5^3*6.943248*10^-5-3.821216*10^-7*B5^4)/1000)) -> 29.93565739 | D5: =C5/((999.84847+B5*6.337563*10^-2-B5^2*8.523829*10^-3+B5^3*6.943248*10^-5-3.821216*10^-7*B5^4)/1000) -> 29.97742444 | E5: 29.9780318 | G5: 1.0064 | H5: 18.368 | I5: =G5*(1-((3.4848*(101.325-(0.003796*30*EXP(-5315.56/(H5+273.15))*(1.7526*10^8)))/(273.15+H5))*10^-3)/8)/(1-((3.4848*(101.325-(0.003796*30*EXP(-5315.56/(H5+273.15))*(1.7526*10^8)))/(273.15+H5))*10^-3)/((999.84847+H5*6.337563*10^-2-H5^2*8.523829*10^-3+H5^3*6.943248*10^-5-3.821216*10^-7*H5^4)/1000)) -> 1.007467173 | J5: =I5/((999.84847+H5*6.337563*10^-2-H5^2*8.523829*10^-3+H5^3*6.943248*10^-5-3.821216*10^-7*H5^4)/1000) -> 1.008956861 | K5: 1.008972916
A6: 29.87 | B6: 18.224 | C6: 29.90168911 | D6: 29.94509057 | E6: 29.9456091 | G6: 0.9937 | H6: 18.312 | I6: 0.9947539046 | J6: 0.9962142548 | K6: 0.9962306506
A7: 29.8052 | B7: 18.205 | C7: 29.83682238 | D7: 29.88002323 | E7: 29.88054617 | G7: 0.9905 | H7: 18.293 | I7: 0.991550578 | J7: 0.9930026689 | K7: 0.9930191958
A8: 29.8699 | B8: 18.312 | C8: 29.90157961 | D8: 29.94547667 | E8: 29.94596952 | G8: 0.9738 | H8: 18.187 | I8: 0.974833234 | J8: 0.9762414067 | K8: 0.9762586635
A9: 29.8688 | B9: 18.168 | C9: 29.90049381 | D9: 29.94357941 | E9: 29.94411427 | G9: 0.9874 | H9: 18.199 | I9: 0.9884476217 | J9: 0.9898776856 | K9: 0.9898950676
A10: 29.9069 | B10: 18.255 | C10: 29.93862494 | D10: 29.98225458 | E10: 29.9827647 | G10: 0.9855 | H10: 18.337 | I10: 0.9865451198 | J10: 0.9879980813 | K10: 0.988014101
A11: 29.9147 | B11: 18.406 | C11: 29.94641708 | D11: 29.99091316 | E11: 29.99137926 | G11: 0.9919 | H11: 18.237 | I11: 0.9929522614 | J11: 0.9943959305 | K11: 0.9944130235
A12: 29.9074 | B12: 18.349 | C12: 29.93911543 | D12: 29.98327707 | E12: 29.98375972 | G12: 0.9908 | H12: 18.187 | I12: 0.9918512716 | J12: 0.9932840272 | K12: 0.9933015853
A13: 29.899 | B13: 21.253 | C13: 29.93040001 | D13: 29.99236911 | E13: 29.9920027 | G13: 0.9931 | H13: 21.508 | I13: =G13*(1-((3.4848*(101.325-(0.003796*30*EXP(-5315.56/(H13+273.15))*(1.7526*10^8)))/(273.15+H13))*10^-3)/8)/(1-((3.4848*(101.325-(0.003796*30*EXP(-5315.56/(H13+273.15))*(1.7526*10^8)))/(273.15+H13))*10^-3)/((999.84847+H13*6.337563*10^-2-H13^2*8.523829*10^-3+H13^3*6.943248*10^-5-3.821216*10^-7*H13^4)/1000)) -> 0.994142073 | J13: =I13/((999.84847+H13*6.337563*10^-2-H13^2*8.523829*10^-3+H13^3*6.943248*10^-5-3.821216*10^-7*H13^4)/1000) -> 0.9962566023 | K13: =J13*(1+((1+32.5*10^-7)^3-1)*(20-H13)) -> 0.9962419543 | L13: 2017-11-16
A14: 29.9246 | B14: 21.338 | C14: 29.95601802 | D14: 30.01860257 | E14: 30.01821096 | G14: 0.9958 | H14: 21.344 | I14: 0.9968454755 | J14: 0.9989294238 | K14: 0.9989163338
A15: 29.9166 | B15: 21.393 | C15: 29.94800388 | D15: 30.01093671 | E15: 30.0105291 | G15: 0.9961 | H15: 21.308 | I15: 0.9971459156 | J15: 0.9992225517 | K15: 0.9992098085
A16: 29.9151 | B16: 21.423 | C16: 29.94649917 | D16: 30.00962832 | E16: 30.00921196 | G16: 0.9952 | H16: 21.478 | I16: 0.9962443806 | J16: 0.9983567188 | K16: 0.9983423319
A17: 29.9306 | B17: 21.544 | C17: 29.96200282 | D17: 30.0259725 | E17: 30.02552048 | G17: 0.9942 | H17: 21.575 | I17: 0.9952429952 | J17: 0.9973747646 | K17: 0.9973594486
A18: 29.9203 | B18: 21.543 | C18: 29.95169212 | D18: 30.01563309 | E18: 30.01518152 | G18: 0.9967 | H18: 21.611 | I18: 0.997745493 | J18: 0.999890667 | K18: 0.9998749615
A19: 29.9221 | B19: 21.504 | C19: 29.95349807 | D19: 30.01718211 | E19: 30.01674194 | G19: 0.9997 | H19: 21.611 | I19: 1.00074864 | J19: 1.002900271 | K19: 1.002884518
A20: 29.9127 | B20: 21.49 | C20: 29.94408967 | D20: 30.00766023 | E20: 30.00722429 | G20: 0.9952 | H20: 21.611 | I20: 0.9962439196 | J20: 0.9983858652 | K20: 0.9983701833
A21: 29.9337 | B21: 21.611 | C21: 29.96509909 | D21: 30.02952469 | E21: 30.02905301 | G21: 0.9924 | H21: 21.611 | I21: 0.9934409825 | J21: 0.9955769018 | K21: 0.9955612639
A22: 29.9339 | B22: 21.52 | C22: 29.96530879 | D22: 30.02912491 | E22: 30.02867987 | G22: 0.9903 | H22: 21.805 | I22: 0.9913381113 | J22: 0.9935128097 | K22: 0.993495325
E26: =AVERAGE(E3:E22) -> 29.99111753 | K26: =AVERAGE(K3:K22) -> 0.9960185639
E27: =_xlfn.STDEV.P(E3:E22) -> 0.03689832538 | K27: =_xlfn.STDEV.P(K3:K22) -> 0.00638286178
E28: =E27/E26 -> 0.001230308452 | K28: =K27/K26 -> 0.006408376321
E30: =AVERAGE(E3,E5:E6,E8:E12) -> 29.9700847 | K30: =AVERAGE(K3:K7,K11:K22) -> 0.9980119674
E31: =_xlfn.STDEV.P(E3,E5:E6,E8:E12) -> 0.01961860501 | K31: =_xlfn.STDEV.P(K3:K7,K11:K22) -> 0.003874835994
E32: =E31/E30 -> 0.0006546062584 | K32: =K31/K30 -> 0.003882554639

Sheet equations
A1: Computaiton of air density | D1: Computation of mass from weight
A2: p=air pressure | B2: 101.325 | D2: m=w(1-p(air)/p(weight))/(1-p(air)/p(sample))
A3: U=humidity | B3: 30 | D3: w=100 | E3: 100 | F3: 100
A4: t=temperature | B4: 20 | C4: =F3*(1-((3.4848*(101.325-(0.003796*30*EXP(-5315.56/(B4+273.15))*(1.7526*10^8)))/(273.15+B4))*10^-3)/8)/(1-((3.4848*(101.325-(0.003796*30*EXP(-5315.56/(B4+273.15))*(1.7526*10^8)))/(273.15+B4))*10^-3)/((999.84847+B4*6.337563*10^-2-B4^2*8.523829*10^-3+B4^3*6.943248*10^-5-3.821216*10^-7*B4^4)/1000)) -> 100.1054597 | D4: p(air)=.0012013 | E4: =((3.4848*(B2-(0.003796*B3*B5))/(273.15+B4))*10^-3) -> 0.001201329
A5: es=vapor pressure | B5: =EXP(-5315.56/(B4+273.15))*(1.7526*10^8) -> 2.337825025 | D5: p(weight)=8 | E5: 8 | F5: 8
A6: p(air)=.0012013 | B6: =((3.4848*(B2-(0.003796*B3*EXP(-5315.56/(B4+273.15))*(1.7526*10^8)))/(273.15+B4))*10^-3) -> 0.001201329 | D6: p(sample)=1 | E6: 1 | F6: 1
D8: m | E8: =E3*(1-B6/8)/(1-B6/B13) -> 100.1054597
A9: Computation of water pressure at temperature
A10: p(H2O)=(999.84847+temp*6.337563*10^-2-temp^2*8.523829*10^-3+temp^3*6.943248*10^-5-3.821216*10^-7*temp^4)/1000
A11: 5 | B11: =(999.84847+A11*6.337563*10^-2-A11^2*8.523829*10^-3+A11^3*6.943248*10^-5-3.821216*10^-7*A11^4)/1000 -> 0.9999606927
A12: 10 | B12: =(999.84847+A12*6.337563*10^-2-A12^2*8.523829*10^-3+A12^3*6.943248*10^-5-3.821216*10^-7*A12^4)/1000 -> 0.9996954547 | D12: av | E12: =(1+32.5*10^-7)^3-1 -> 9.750031688e-06
A13: 20 | B13: =(999.84847+A13*6.337563*10^-2-A13^2*8.523829*10^-3+A13^3*6.943248*10^-5-3.821216*10^-7*A13^4)/1000 -> 0.9982007714 | E13: =3*32.5*10^-7 -> 9.75e-06
A14: 23 | B14: =(999.84847+A14*6.337563*10^-2-A14^2*8.523829*10^-3+A14^3*6.943248*10^-5-3.821216*10^-7*A14^4)/1000 -> 0.9975348556 | C14: =30*(1+E12*(23-20)) -> 30.0008775 | D14: =0.997541-B14 -> 6.144357506e-06
A15: 30 | B15: =(999.84847+A15*6.337563*10^-2-A15^2*8.523829*10^-3+A15^3*6.943248*10^-5-3.821216*10^-7*A15^4)/1000 -> 0.9956434513 | D15: =D14/E12 -> 0.6301884653
A16: 40 | B16: =(999.84847+A16*6.337563*10^-2-A16^2*8.523829*10^-3+A16^3*6.943248*10^-5-3.821216*10^-7*A16^4)/1000 -> 0.9922108162

Sheet Sheet3
